[Event "Titled Tuesday Blitz April 12 Early 2022"]
[White "Sovetbekova, Nurai"]
[Black "Alinasab, Mobina"]
[WhiteFideId "13801910"]
[BlackFideId "12528897"]
[WhiteElo "1538"]
[BlackElo "2031"]
[Result "0-1"]
[Round "02"]
[TimeControl "180+1"]
[Date "2022.04.13"]
[WhiteClock "0:00:02"]
[BlackClock "0:01:25"]

1. d4 {[%clk 0:03:00]}  Nf6 {[%clk 0:02:59]} 2. c4 {[%clk 0:03:00]}  e6 {[%clk 0:02:55]} 3. g3 {[%clk 0:02:59]}  d5 {[%clk 0:02:54]} 4. Bg2 {[%clk 0:02:58]}  dxc4 {[%clk 0:02:53]} 5. Nf3 {[%clk 0:02:56]}  c6 {[%clk 0:02:49]} 6. O-O {[%clk 0:02:53]}  b5 {[%clk 0:02:40]} 7. a4 {[%clk 0:02:52]}  Bb7 {[%clk 0:02:40]} 8. Ne5 {[%clk 0:02:46]}  a6 {[%clk 0:02:39]} 9. axb5 {[%clk 0:02:17]}  axb5 {[%clk 0:02:40]} 10. Rxa8 {[%clk 0:02:12]}  Bxa8 {[%clk 0:02:41]} 11. Nc3 {[%clk 0:01:53]}  Nd5 {[%clk 0:02:29]} 12. e4 {[%clk 0:01:20]}  Nxc3 {[%clk 0:02:27]} 13. bxc3 {[%clk 0:01:20]}  Nd7 {[%clk 0:02:27]} 14. f4 {[%clk 0:00:52]}  Be7 {[%clk 0:02:02]} 15. d5 {[%clk 0:00:38]}  cxd5 {[%clk 0:01:53]} 16. exd5 {[%clk 0:00:38]}  Nxe5 {[%clk 0:01:51]} 17. fxe5 {[%clk 0:00:33]}  Bxd5 {[%clk 0:01:50]} 18. Qh5 {[%clk 0:00:28]}  g6 {[%clk 0:01:47]} 19. Qg4 {[%clk 0:00:26]}  Bxg2 {[%clk 0:01:44]} 20. Kxg2 {[%clk 0:00:25]}  Qd5+ {[%clk 0:01:44]} 21. Kh3 {[%clk 0:00:17]}  Qxe5 {[%clk 0:01:29]} 22. Qd1 {[%clk 0:00:05]}  O-O {[%clk 0:01:26]} 23. Bf4 {[%clk 0:00:02]}  Qh5+ {[%clk 0:01:25]} 0-1


[Site "https://www.chess.com"]

[Event "Titled Tuesday Blitz April 12 Early 2022"]
[White "Svane, Frederik"]
[Black "Kouskoutis, Georgios-Alexandros"]
[WhiteFideId "12923044"]
[BlackFideId "4234049"]
[WhiteElo "2459"]
[BlackElo "2130"]
[Result "1-0"]
[Round "02"]
[TimeControl "180+1"]
[Date "2022.04.12"]
[WhiteClock "0:00:53"]
[BlackClock "0:00:05"]

1. e4 {[%clk 0:03:00]}  c5 {[%clk 0:02:59]} 2. Nf3 {[%clk 0:03:01]}  d6 {[%clk 0:02:58]} 3. d4 {[%clk 0:03:00]}  cxd4 {[%clk 0:02:59]} 4. Nxd4 {[%clk 0:03:01]}  Nf6 {[%clk 0:02:59]} 5. f3 {[%clk 0:03:01]}  g6 {[%clk 0:02:57]} 6. c4 {[%clk 0:02:58]}  Bg7 {[%clk 0:02:58]} 7. Nc3 {[%clk 0:02:58]}  O-O {[%clk 0:02:52]} 8. Be3 {[%clk 0:02:58]}  Nc6 {[%clk 0:02:53]} 9. Be2 {[%clk 0:02:57]}  Bd7 {[%clk 0:02:06]} 10. O-O {[%clk 0:02:41]}  Qb6 {[%clk 0:01:46]} 11. Qd2 {[%clk 0:01:54]}  Nxe4 {[%clk 0:01:36]} 12. Nxc6 {[%clk 0:01:54]}  Nxd2 {[%clk 0:01:22]} 13. Nxe7+ {[%clk 0:01:52]}  Kh8 {[%clk 0:01:22]} 14. Bxb6 {[%clk 0:01:53]}  axb6 {[%clk 0:00:42]} 15. Rfd1 {[%clk 0:01:50]}  Bxc3 {[%clk 0:00:42]} 16. bxc3 {[%clk 0:01:49]}  Rfe8 {[%clk 0:00:40]} 17. Rxd2 {[%clk 0:01:50]}  Rxe7 {[%clk 0:00:40]} 18. Rb1 {[%clk 0:01:49]}  Bc6 {[%clk 0:00:39]} 19. Rxb6 {[%clk 0:01:48]}  Re3 {[%clk 0:00:34]} 20. Rb3 {[%clk 0:01:46]}  Re5 {[%clk 0:00:29]} 21. Kf2 {[%clk 0:01:43]}  Kg7 {[%clk 0:00:24]} 22. Rbb2 {[%clk 0:01:39]}  Rd8 {[%clk 0:00:13]} 23. Rd4 {[%clk 0:01:37]}  Kf8 {[%clk 0:00:13]} 24. Rbd2 {[%clk 0:01:37]}  Ke7 {[%clk 0:00:13]} 25. Bd1 {[%clk 0:01:37]}  Ra5 {[%clk 0:00:06]} 26. Bb3 {[%clk 0:01:37]}  g5 {[%clk 0:00:06]} 27. h4 {[%clk 0:01:36]}  h6 {[%clk 0:00:06]} 28. Kg3 {[%clk 0:01:36]}  f6 {[%clk 0:00:06]} 29. Kg4 {[%clk 0:01:30]}  Re5 {[%clk 0:00:06]} 30. Kg3 {[%clk 0:01:27]}  gxh4+ {[%clk 0:00:04]} 31. Rxh4 {[%clk 0:01:24]}  h5 {[%clk 0:00:02]} 32. Kf2 {[%clk 0:01:24]}  Rg5 {[%clk 0:00:01]} 33. Re2+ {[%clk 0:01:22]}  Re5 {[%clk 0:00:02]} 34. Rxh5 {[%clk 0:01:20]}  Rxe2+ {[%clk 0:00:01]} 35. Kxe2 {[%clk 0:01:21]}  Rg8 {[%clk 0:00:02]} 36. Kf2 {[%clk 0:01:19]}  Rg5 {[%clk 0:00:02]} 37. Rxg5 {[%clk 0:01:11]}  fxg5 {[%clk 0:00:03]} 38. Bc2 {[%clk 0:01:04]}  Kf6 {[%clk 0:00:04]} 39. Be4 {[%clk 0:00:59]}  Bd7 {[%clk 0:00:04]} 40. Bxb7 {[%clk 0:00:58]}  Ke5 {[%clk 0:00:05]} 41. Bd5 {[%clk 0:00:57]}  g4 {[%clk 0:00:05]} 42. Ke3 {[%clk 0:00:56]}  gxf3 {[%clk 0:00:05]} 43. Kxf3 {[%clk 0:00:53]}  Ba4 {[%clk 0:00:05]} 44. g4 {[%clk 0:00:53]}  Bd1+ {[%clk 0:00:06]} 45. Kg3 {[%clk 0:00:54]}  Be2 {[%clk 0:00:05]} 46. a4 {[%clk 0:00:53]}  Bd1 {[%clk 0:00:05]} 47. a5 {[%clk 0:00:53]} 1-0


[Site "https://www.chess.com"]

[Event "Titled Tuesday Blitz April 12 Early 2022"]
[White "Svane, Rasmus"]
[Black "Piesik, Piotr"]
[WhiteFideId "4657101"]
[BlackFideId "1136194"]
[WhiteElo "2645"]
[BlackElo "2190"]
[Result "0-1"]
[Round "02"]
[TimeControl "180+1"]
[Date "2022.04.12"]
[WhiteClock "0:00:14"]
[BlackClock "0:00:44"]

1. Nf3 {[%clk 0:03:00]}  g6 {[%clk 0:02:59]} 2. e4 {[%clk 0:03:00]}  Bg7 {[%clk 0:02:59]} 3. d4 {[%clk 0:03:00]}  c6 {[%clk 0:03:00]} 4. Bd3 {[%clk 0:03:00]}  d6 {[%clk 0:02:59]} 5. O-O {[%clk 0:02:59]}  Nf6 {[%clk 0:02:59]} 6. h3 {[%clk 0:02:58]}  O-O {[%clk 0:02:59]} 7. c3 {[%clk 0:02:59]}  Nbd7 {[%clk 0:03:00]} 8. Re1 {[%clk 0:02:59]}  e5 {[%clk 0:03:00]} 9. Be3 {[%clk 0:02:59]}  Re8 {[%clk 0:02:59]} 10. Nbd2 {[%clk 0:02:58]}  Qc7 {[%clk 0:02:59]} 11. Qc2 {[%clk 0:02:58]}  d5 {[%clk 0:02:59]} 12. Nxe5 {[%clk 0:02:32]}  Nxe5 {[%clk 0:02:57]} 13. dxe5 {[%clk 0:02:33]}  Nxe4 {[%clk 0:02:56]} 14. f4 {[%clk 0:02:29]}  Nxd2 {[%clk 0:02:45]} 15. Qxd2 {[%clk 0:02:30]}  f6 {[%clk 0:02:39]} 16. exf6 {[%clk 0:02:15]}  Bxf6 {[%clk 0:02:40]} 17. f5 {[%clk 0:02:10]}  Bxf5 {[%clk 0:02:36]} 18. Bxf5 {[%clk 0:02:10]}  gxf5 {[%clk 0:02:37]} 19. Rf1 {[%clk 0:01:55]}  Qd7 {[%clk 0:02:27]} 20. Rf3 {[%clk 0:01:51]}  Bg7 {[%clk 0:02:09]} 21. Raf1 {[%clk 0:01:47]}  Rf8 {[%clk 0:02:07]} 22. Qd3 {[%clk 0:01:45]}  Rae8 {[%clk 0:02:05]} 23. Bxa7 {[%clk 0:01:43]}  Re4 {[%clk 0:02:03]} 24. Rg3 {[%clk 0:01:38]}  f4 {[%clk 0:01:47]} 25. Rg4 {[%clk 0:01:33]}  Kh8 {[%clk 0:01:45]} 26. Qd2 {[%clk 0:01:21]}  Qf5 {[%clk 0:01:40]} 27. Bc5 {[%clk 0:01:07]}  Rf7 {[%clk 0:01:38]} 28. Bd6 {[%clk 0:01:03]}  Be5 {[%clk 0:01:28]} 29. Bxe5+ {[%clk 0:01:00]}  Qxe5 {[%clk 0:01:29]} 30. Rf3 {[%clk 0:00:54]}  h5 {[%clk 0:01:18]} 31. Rh4 {[%clk 0:00:50]}  Kg7 {[%clk 0:01:12]} 32. Qf2 {[%clk 0:00:41]}  Rf5 {[%clk 0:00:55]} 33. Rd3 {[%clk 0:00:22]}  Re1+ {[%clk 0:00:47]} 34. Kh2 {[%clk 0:00:22]}  f3+ {[%clk 0:00:45]} 35. g3 {[%clk 0:00:13]}  Re2 {[%clk 0:00:44]} 36. Rd2 {[%clk 0:00:13]}  Rxf2+ {[%clk 0:00:44]} 37. Rxf2 {[%clk 0:00:14]} 0-1


[Site "https://www.chess.com"]

[Event "Titled Tuesday Blitz April 12 Early 2022"]
[White "Sztokbant, Bernardo Vainzoff"]
[Black "Tsyhanchuk, Stanislav"]
[WhiteFideId "2115956"]
[BlackFideId "13505130"]
[WhiteElo "2225"]
[BlackElo "2078"]
[Result "0-1"]
[Round "02"]
[TimeControl "180+1"]
[Date "2022.04.13"]
[WhiteClock "0:00:12"]
[BlackClock "0:00:59"]

1. e4 {[%clk 0:03:00]}  c5 {[%clk 0:02:55]} 2. Nf3 {[%clk 0:03:00]}  Nc6 {[%clk 0:02:54]} 3. d4 {[%clk 0:03:00]}  cxd4 {[%clk 0:02:55]} 4. Nxd4 {[%clk 0:03:00]}  Qb6 {[%clk 0:02:55]} 5. Nb3 {[%clk 0:03:00]}  Nf6 {[%clk 0:02:54]} 6. Nc3 {[%clk 0:03:01]}  e6 {[%clk 0:02:54]} 7. Be3 {[%clk 0:03:01]}  Qc7 {[%clk 0:02:54]} 8. Be2 {[%clk 0:03:01]}  Bb4 {[%clk 0:02:53]} 9. f3 {[%clk 0:02:56]}  d5 {[%clk 0:02:52]} 10. a3 {[%clk 0:02:52]}  Bxc3+ {[%clk 0:02:45]} 11. bxc3 {[%clk 0:02:53]}  dxe4 {[%clk 0:02:46]} 12. O-O {[%clk 0:02:53]}  exf3 {[%clk 0:02:35]} 13. Bxf3 {[%clk 0:02:53]}  O-O {[%clk 0:02:31]} 14. Qe1 {[%clk 0:02:48]}  Nd5 {[%clk 0:02:14]} 15. Bc5 {[%clk 0:02:39]}  Rd8 {[%clk 0:02:08]} 16. c4 {[%clk 0:02:33]}  Nf4 {[%clk 0:02:02]} 17. Qg3 {[%clk 0:02:32]}  e5 {[%clk 0:02:02]} 18. Be3 {[%clk 0:02:08]}  Be6 {[%clk 0:01:49]} 19. Nc5 {[%clk 0:01:56]}  Bxc4 {[%clk 0:01:48]} 20. Rfb1 {[%clk 0:01:55]}  b6 {[%clk 0:01:46]} 21. Ne4 {[%clk 0:01:52]}  Kh8 {[%clk 0:01:39]} 22. Re1 {[%clk 0:01:46]}  f6 {[%clk 0:01:34]} 23. Qh4 {[%clk 0:01:38]}  Rac8 {[%clk 0:01:27]} 24. Bxf4 {[%clk 0:01:29]}  exf4 {[%clk 0:01:27]} 25. Rad1 {[%clk 0:01:11]}  Ne5 {[%clk 0:01:16]} 26. Nxf6 {[%clk 0:00:44]}  Nxf3+ {[%clk 0:01:14]} 27. gxf3 {[%clk 0:00:43]}  gxf6 {[%clk 0:01:14]} 28. Kh1 {[%clk 0:00:19]}  Qf7 {[%clk 0:01:10]} 29. Qxf4 {[%clk 0:00:18]}  Rxd1 {[%clk 0:01:08]} 30. Rxd1 {[%clk 0:00:19]}  Re8 {[%clk 0:01:04]} 31. Rd6 {[%clk 0:00:14]}  Re1+ {[%clk 0:01:00]} 32. Kg2 {[%clk 0:00:14]}  Qg6+ {[%clk 0:01:00]} 33. Kf2 {[%clk 0:00:12]}  Re2+ {[%clk 0:00:58]} 34. Kf1 {[%clk 0:00:12]}  Qg2# {[%clk 0:00:59]} 0-1


[Site "https://www.chess.com"]

[Event "Titled Tuesday Blitz April 12 Early 2022"]
[White "Tan, Jun Ying"]
[Black "Moroni, Luca Jr"]
[WhiteFideId "5710413"]
[BlackFideId "865834"]
[WhiteElo "1827"]
[BlackElo "2573"]
[Result "1-0"]
[Round "02"]
[TimeControl "180+1"]
[Date "2022.04.13"]
[WhiteClock "0:00:05"]
[BlackClock "0:00:04"]

1. d4 {[%clk 0:02:55]}  Nf6 {[%clk 0:02:58]} 2. c4 {[%clk 0:02:56]}  e6 {[%clk 0:02:58]} 3. Nc3 {[%clk 0:02:56]}  d5 {[%clk 0:02:59]} 4. cxd5 {[%clk 0:02:56]}  exd5 {[%clk 0:03:00]} 5. Bg5 {[%clk 0:02:56]}  c6 {[%clk 0:02:59]} 6. e3 {[%clk 0:02:57]}  h6 {[%clk 0:02:59]} 7. Bh4 {[%clk 0:02:57]}  Be6 {[%clk 0:03:00]} 8. Bd3 {[%clk 0:02:56]}  Nbd7 {[%clk 0:03:00]} 9. Nge2 {[%clk 0:02:55]}  g5 {[%clk 0:03:00]} 10. Bg3 {[%clk 0:02:54]}  Nh5 {[%clk 0:03:01]} 11. O-O {[%clk 0:02:52]}  Nxg3 {[%clk 0:03:00]} 12. Nxg3 {[%clk 0:02:46]}  h5 {[%clk 0:02:57]} 13. f4 {[%clk 0:02:26]}  Bg4 {[%clk 0:02:28]} 14. Qe1 {[%clk 0:02:13]}  h4 {[%clk 0:02:23]} 15. Nf5 {[%clk 0:01:56]}  Qf6 {[%clk 0:02:16]} 16. fxg5 {[%clk 0:01:49]}  Qxg5 {[%clk 0:02:16]} 17. e4 {[%clk 0:01:45]}  O-O-O {[%clk 0:01:48]} 18. exd5 {[%clk 0:01:44]}  cxd5 {[%clk 0:01:21]} 19. Nxd5 {[%clk 0:01:36]}  Kb8 {[%clk 0:01:15]} 20. Qc3 {[%clk 0:01:08]}  Rc8 {[%clk 0:01:04]} 21. Qb3 {[%clk 0:01:08]}  Rg8 {[%clk 0:00:50]} 22. Be4 {[%clk 0:01:02]}  Bxf5 {[%clk 0:00:37]} 23. Rxf5 {[%clk 0:00:59]}  Qd2 {[%clk 0:00:32]} 24. Rd1 {[%clk 0:00:47]}  Rc1 {[%clk 0:00:27]} 25. Rxc1 {[%clk 0:00:41]}  Qxc1+ {[%clk 0:00:27]} 26. Rf1 {[%clk 0:00:42]}  Qc8 {[%clk 0:00:22]} 27. Rxf7 {[%clk 0:00:37]}  Bd6 {[%clk 0:00:21]} 28. Rf1 {[%clk 0:00:33]}  h3 {[%clk 0:00:17]} 29. g3 {[%clk 0:00:27]}  Re8 {[%clk 0:00:16]} 30. Qf3 {[%clk 0:00:24]}  Qc4 {[%clk 0:00:14]} 31. Rd1 {[%clk 0:00:22]}  Rf8 {[%clk 0:00:14]} 32. Qd3 {[%clk 0:00:21]}  Qxa2 {[%clk 0:00:12]} 33. Qd2 {[%clk 0:00:12]}  Qb3 {[%clk 0:00:09]} 34. Nc3 {[%clk 0:00:11]}  Qc4 {[%clk 0:00:09]} 35. Qd3 {[%clk 0:00:10]}  Qb4 {[%clk 0:00:08]} 36. Kh1 {[%clk 0:00:09]}  Qxb2 {[%clk 0:00:07]} 37. Rb1 {[%clk 0:00:09]}  Qf2 {[%clk 0:00:05]} 38. Rxb7+ {[%clk 0:00:08]}  Kc8 {[%clk 0:00:06]} 39. Qc4+ {[%clk 0:00:07]}  Kd8 {[%clk 0:00:05]} 40. Rb1 {[%clk 0:00:02]}  Re8 {[%clk 0:00:02]} 41. Qd5 {[%clk 0:00:02]}  Rxe4 {[%clk 0:00:01]} 42. Qxe4 {[%clk 0:00:02]}  Nf6 {[%clk 0:00:02]} 43. Qa8+ {[%clk 0:00:02]}  Ke7 {[%clk 0:00:02]} 44. Qxa7+ {[%clk 0:00:02]}  Ke6 {[%clk 0:00:03]} 45. Qa8 {[%clk 0:00:03]}  Kf5 {[%clk 0:00:03]} 46. Qc8+ {[%clk 0:00:02]}  Kg5 {[%clk 0:00:03]} 47. Qb7 {[%clk 0:00:02]}  Ng4 {[%clk 0:00:03]} 48. Ne4+ {[%clk 0:00:02]}  Kf5 {[%clk 0:00:02]} 49. Nxf2 {[%clk 0:00:03]}  Nxf2+ {[%clk 0:00:03]} 50. Kg1 {[%clk 0:00:04]}  Ng4 {[%clk 0:00:04]} 51. Qd7+ {[%clk 0:00:04]}  Ke4 {[%clk 0:00:04]} 52. Qxg4+ {[%clk 0:00:04]}  Kd3 {[%clk 0:00:04]} 53. Qxh3 {[%clk 0:00:05]} 1-0


[Site "https://www.chess.com"]

[Event "Titled Tuesday Blitz April 12 Early 2022"]
[White "Tasev, Dejan"]
[Black "Korchmar, Vasiliy"]
[WhiteFideId "936618"]
[BlackFideId "24131750"]
[WhiteElo "2253"]
[BlackElo "2370"]
[Result "0-1"]
[Round "02"]
[TimeControl "180+1"]
[Date "2022.04.13"]
[WhiteClock "0:00:06"]
[BlackClock "0:00:20"]

1. e4 {[%clk 0:03:00]}  c5 {[%clk 0:02:59]} 2. Nf3 {[%clk 0:03:00]}  d6 {[%clk 0:03:00]} 3. Nc3 {[%clk 0:03:00]}  Nc6 {[%clk 0:02:59]} 4. d4 {[%clk 0:03:00]}  cxd4 {[%clk 0:03:00]} 5. Nxd4 {[%clk 0:03:01]}  Nf6 {[%clk 0:03:00]} 6. Bc4 {[%clk 0:03:00]}  e6 {[%clk 0:03:00]} 7. Bb3 {[%clk 0:03:00]}  a6 {[%clk 0:02:58]} 8. Be3 {[%clk 0:02:59]}  Bd7 {[%clk 0:02:57]} 9. f3 {[%clk 0:02:57]}  b5 {[%clk 0:02:56]} 10. a3 {[%clk 0:02:57]}  Rc8 {[%clk 0:02:55]} 11. Qd2 {[%clk 0:02:55]}  Na5 {[%clk 0:02:54]} 12. O-O {[%clk 0:02:49]}  Be7 {[%clk 0:02:52]} 13. Rfd1 {[%clk 0:02:46]}  O-O {[%clk 0:02:50]} 14. Rac1 {[%clk 0:02:44]}  Nc4 {[%clk 0:02:48]} 15. Bxc4 {[%clk 0:02:42]}  Rxc4 {[%clk 0:02:49]} 16. Qf2 {[%clk 0:02:39]}  Qc7 {[%clk 0:02:38]} 17. Rd2 {[%clk 0:02:21]}  Rb8 {[%clk 0:02:34]} 18. Rcd1 {[%clk 0:02:17]}  a5 {[%clk 0:02:28]} 19. Na2 {[%clk 0:01:46]}  e5 {[%clk 0:02:19]} 20. Nb3 {[%clk 0:01:36]}  Be6 {[%clk 0:02:12]} 21. c3 {[%clk 0:01:17]}  Rxe4 {[%clk 0:01:54]} 22. fxe4 {[%clk 0:01:12]}  Bxb3 {[%clk 0:01:54]} 23. Nc1 {[%clk 0:01:01]}  Nxe4 {[%clk 0:01:54]} 24. Qf3 {[%clk 0:00:53]}  Nxd2 {[%clk 0:01:53]} 25. Rxd2 {[%clk 0:00:51]}  Be6 {[%clk 0:01:53]} 26. Ne2 {[%clk 0:00:49]}  d5 {[%clk 0:01:52]} 27. Ng3 {[%clk 0:00:47]}  b4 {[%clk 0:01:44]} 28. axb4 {[%clk 0:00:47]}  axb4 {[%clk 0:01:45]} 29. cxb4 {[%clk 0:00:42]}  d4 {[%clk 0:01:38]} 30. Bf2 {[%clk 0:00:37]}  Bxb4 {[%clk 0:01:33]} 31. Rd1 {[%clk 0:00:33]}  Bf8 {[%clk 0:01:33]} 32. h3 {[%clk 0:00:28]}  Rxb2 {[%clk 0:01:32]} 33. Ne4 {[%clk 0:00:27]}  Qc2 {[%clk 0:01:26]} 34. Rf1 {[%clk 0:00:26]}  Bc4 {[%clk 0:01:22]} 35. Re1 {[%clk 0:00:21]}  Bd3 {[%clk 0:01:03]} 36. Ng5 {[%clk 0:00:19]}  Bg6 {[%clk 0:01:00]} 37. Rxe5 {[%clk 0:00:19]}  d3 {[%clk 0:00:51]} 38. Re8 {[%clk 0:00:17]}  Qc1+ {[%clk 0:00:51]} 39. Kh2 {[%clk 0:00:16]}  Qxg5 {[%clk 0:00:51]} 40. Qa8 {[%clk 0:00:15]}  Qf4+ {[%clk 0:00:22]} 41. Bg3 {[%clk 0:00:15]}  Qb4 {[%clk 0:00:22]} 42. Rb8 {[%clk 0:00:11]}  Qa3 {[%clk 0:00:22]} 43. Qxa3 {[%clk 0:00:07]}  Rxb8 {[%clk 0:00:22]} 44. Qa2 {[%clk 0:00:06]}  Rd8 {[%clk 0:00:20]} 45. Qd2 {[%clk 0:00:06]}  Bb4 {[%clk 0:00:19]} 46. Qxb4 {[%clk 0:00:06]}  d2 {[%clk 0:00:20]} 0-1


[Site "https://www.chess.com"]

[Event "Titled Tuesday Blitz April 12 Early 2022"]
[White "Timofeev, Artyom"]
[Black "Brodowski, Piotr"]
[WhiteFideId "4140419"]
[BlackFideId "1124480"]
[WhiteElo "2594"]
[BlackElo "2422"]
[Result "1-0"]
[Round "02"]
[TimeControl "180+1"]
[Date "2022.04.12"]
[WhiteClock "0:00:13"]
[BlackClock "0:00:03"]

1. e4 {[%clk 0:03:00]}  d6 {[%clk 0:02:58]} 2. d4 {[%clk 0:03:00]}  Nf6 {[%clk 0:02:58]} 3. Nc3 {[%clk 0:02:59]}  g6 {[%clk 0:02:57]} 4. Nf3 {[%clk 0:02:58]}  Bg7 {[%clk 0:02:56]} 5. h3 {[%clk 0:02:58]}  O-O {[%clk 0:02:53]} 6. Be3 {[%clk 0:02:57]}  h6 {[%clk 0:02:53]} 7. Be2 {[%clk 0:02:57]}  c6 {[%clk 0:02:39]} 8. O-O {[%clk 0:02:55]}  Qc7 {[%clk 0:02:37]} 9. Qd2 {[%clk 0:02:50]}  Kh7 {[%clk 0:02:37]} 10. e5 {[%clk 0:02:49]}  Nd5 {[%clk 0:02:33]} 11. Nxd5 {[%clk 0:02:47]}  cxd5 {[%clk 0:02:33]} 12. Bf4 {[%clk 0:02:47]}  Nc6 {[%clk 0:02:07]} 13. exd6 {[%clk 0:02:41]}  exd6 {[%clk 0:02:07]} 14. Rfe1 {[%clk 0:02:40]}  Bf5 {[%clk 0:01:55]} 15. c3 {[%clk 0:02:39]}  Be4 {[%clk 0:01:46]} 16. Nh2 {[%clk 0:02:39]}  Rae8 {[%clk 0:01:35]} 17. Ng4 {[%clk 0:02:36]}  g5 {[%clk 0:01:31]} 18. Bg3 {[%clk 0:02:13]}  f5 {[%clk 0:01:30]} 19. f3 {[%clk 0:02:13]}  fxg4 {[%clk 0:01:26]} 20. fxe4 {[%clk 0:02:13]}  gxh3 {[%clk 0:01:18]} 21. exd5 {[%clk 0:02:07]}  Ne7 {[%clk 0:01:18]} 22. Bh5 {[%clk 0:02:05]}  Rd8 {[%clk 0:01:15]} 23. Qd3+ {[%clk 0:01:42]}  Kh8 {[%clk 0:01:14]} 24. Bd1 {[%clk 0:01:30]}  Nxd5 {[%clk 0:01:10]} 25. Bc2 {[%clk 0:01:30]}  Bf6 {[%clk 0:00:36]} 26. gxh3 {[%clk 0:01:29]}  Nf4 {[%clk 0:00:37]} 27. Bxf4 {[%clk 0:01:16]}  gxf4 {[%clk 0:00:37]} 28. Kh1 {[%clk 0:01:17]}  Rg8 {[%clk 0:00:35]} 29. Rg1 {[%clk 0:01:07]}  Bh4 {[%clk 0:00:15]} 30. Rg6 {[%clk 0:00:49]}  Rxg6 {[%clk 0:00:13]} 31. Qxg6 {[%clk 0:00:49]}  Qg7 {[%clk 0:00:14]} 32. Rg1 {[%clk 0:00:45]}  Bg3 {[%clk 0:00:14]} 33. Qe6 {[%clk 0:00:35]}  Rf8 {[%clk 0:00:14]} 34. Qe4 {[%clk 0:00:31]}  Qd7 {[%clk 0:00:11]} 35. Kg2 {[%clk 0:00:21]}  Qg7 {[%clk 0:00:04]} 36. Kf1 {[%clk 0:00:20]}  Qd7 {[%clk 0:00:04]} 37. Rg2 {[%clk 0:00:18]}  Qb5+ {[%clk 0:00:02]} 38. Bd3 {[%clk 0:00:17]}  Qd7 {[%clk 0:00:03]} 39. h4 {[%clk 0:00:13]}  h5 {[%clk 0:00:03]} 40. Qg6 {[%clk 0:00:13]} 1-0


[Site "https://www.chess.com"]

[Event "Titled Tuesday Blitz April 12 Early 2022"]
[White "Vianello, Enrico"]
[Black "Baches Garcia, Guillermo"]
[WhiteFideId "810738"]
[BlackFideId "2209764"]
[WhiteElo "2268"]
[BlackElo "2506"]
[Result "1/2-1/2"]
[Round "02"]
[TimeControl "180+1"]
[Date "2022.04.13"]
[WhiteClock "0:00:46"]
[BlackClock "0:00:21"]

1. Nf3 {[%clk 0:02:54]}  d5 {[%clk 0:02:59]} 2. g3 {[%clk 0:02:49]}  g6 {[%clk 0:02:58]} 3. Bg2 {[%clk 0:02:49]}  Bg7 {[%clk 0:02:59]} 4. O-O {[%clk 0:02:50]}  e5 {[%clk 0:02:58]} 5. d3 {[%clk 0:02:50]}  Nc6 {[%clk 0:02:59]} 6. Nbd2 {[%clk 0:02:50]}  Nge7 {[%clk 0:02:58]} 7. e4 {[%clk 0:02:50]}  O-O {[%clk 0:02:55]} 8. c3 {[%clk 0:02:49]}  a5 {[%clk 0:02:55]} 9. Qe2 {[%clk 0:02:44]}  h6 {[%clk 0:02:53]} 10. a4 {[%clk 0:02:38]}  Be6 {[%clk 0:02:53]} 11. Re1 {[%clk 0:02:29]}  Qd7 {[%clk 0:02:50]} 12. Nf1 {[%clk 0:01:58]}  g5 {[%clk 0:02:37]} 13. h4 {[%clk 0:01:52]}  g4 {[%clk 0:02:29]} 14. N3d2 {[%clk 0:01:50]}  f5 {[%clk 0:02:24]} 15. exf5 {[%clk 0:01:44]}  Nxf5 {[%clk 0:02:15]} 16. d4 {[%clk 0:01:39]}  e4 {[%clk 0:02:09]} 17. Ne3 {[%clk 0:01:34]}  h5 {[%clk 0:01:52]} 18. Nxf5 {[%clk 0:01:32]}  Rxf5 {[%clk 0:01:49]} 19. Nf1 {[%clk 0:01:33]}  Raf8 {[%clk 0:01:43]} 20. Be3 {[%clk 0:01:32]}  Rf3 {[%clk 0:01:35]} 21. Rab1 {[%clk 0:01:29]}  Ne7 {[%clk 0:01:31]} 22. Qc2 {[%clk 0:01:24]}  Nf5 {[%clk 0:01:25]} 23. Bxf3 {[%clk 0:01:22]}  gxf3 {[%clk 0:01:22]} 24. Bg5 {[%clk 0:01:17]}  Bf7 {[%clk 0:01:13]} 25. Kh2 {[%clk 0:01:14]}  Nh6 {[%clk 0:01:03]} 26. Ne3 {[%clk 0:01:13]}  Ng4+ {[%clk 0:01:01]} 27. Nxg4 {[%clk 0:01:11]}  Qxg4 {[%clk 0:01:01]} 28. Rh1 {[%clk 0:01:11]}  Be6 {[%clk 0:00:43]} 29. Kg1 {[%clk 0:01:10]}  Kh7 {[%clk 0:00:39]} 30. Qd2 {[%clk 0:01:10]}  b6 {[%clk 0:00:33]} 31. Qe3 {[%clk 0:01:10]}  Kg6 {[%clk 0:00:32]} 32. Kf1 {[%clk 0:01:09]}  Bc8 {[%clk 0:00:30]} 33. Ke1 {[%clk 0:01:08]}  Qd7 {[%clk 0:00:28]} 34. b3 {[%clk 0:01:07]}  Ba6 {[%clk 0:00:29]} 35. Bf4 {[%clk 0:01:05]}  Bd3 {[%clk 0:00:28]} 36. Rb2 {[%clk 0:01:04]}  c5 {[%clk 0:00:26]} 37. Be5 {[%clk 0:01:01]}  Bxe5 {[%clk 0:00:24]} 38. Qg5+ {[%clk 0:00:59]}  Kf7 {[%clk 0:00:23]} 39. Qxh5+ {[%clk 0:00:57]}  Ke7 {[%clk 0:00:21]} 40. Qxe5+ {[%clk 0:00:56]}  Kd8 {[%clk 0:00:21]} 41. Qb8+ {[%clk 0:00:55]}  Ke7 {[%clk 0:00:21]} 42. Qe5+ {[%clk 0:00:54]}  Kd8 {[%clk 0:00:21]} 43. Qb8+ {[%clk 0:00:52]}  Ke7 {[%clk 0:00:21]} 44. Qe5+ {[%clk 0:00:46]} 1/2-1/2


[Site "https://www.chess.com"]

[Event "Titled Tuesday Blitz April 12 Early 2022"]
[White "Vlassov, Nikolai"]
[Black "Gharibyan, Mamikon"]
[WhiteFideId "4103360"]
[BlackFideId "13308300"]
[WhiteElo "2407"]
[BlackElo "2254"]
[Result "0-1"]
[Round "02"]
[TimeControl "180+1"]
[Date "2022.04.12"]
[WhiteClock "0:01:09"]
[BlackClock "0:00:22"]

1. e4 {[%clk 0:03:00]}  e5 {[%clk 0:02:57]} 2. Bc4 {[%clk 0:03:00]}  Nf6 {[%clk 0:02:56]} 3. Nc3 {[%clk 0:03:00]}  Bb4 {[%clk 0:02:56]} 4. Nf3 {[%clk 0:02:58]}  Bxc3 {[%clk 0:02:50]} 5. dxc3 {[%clk 0:02:57]}  d6 {[%clk 0:02:49]} 6. Bg5 {[%clk 0:02:55]}  h6 {[%clk 0:02:49]} 7. Bh4 {[%clk 0:02:55]}  g5 {[%clk 0:02:38]} 8. Bg3 {[%clk 0:02:55]}  Bg4 {[%clk 0:02:35]} 9. Qe2 {[%clk 0:02:45]}  Nbd7 {[%clk 0:02:30]} 10. O-O-O {[%clk 0:02:44]}  Qe7 {[%clk 0:02:27]} 11. Qe3 {[%clk 0:02:39]}  Be6 {[%clk 0:02:17]} 12. Bb5 {[%clk 0:02:17]}  a6 {[%clk 0:02:00]} 13. Ba4 {[%clk 0:02:15]}  b5 {[%clk 0:01:57]} 14. Bb3 {[%clk 0:02:15]}  Bxb3 {[%clk 0:01:57]} 15. cxb3 {[%clk 0:02:06]}  a5 {[%clk 0:01:53]} 16. Nd2 {[%clk 0:02:01]}  a4 {[%clk 0:01:50]} 17. h4 {[%clk 0:01:47]}  g4 {[%clk 0:01:31]} 18. h5 {[%clk 0:01:47]}  Qe6 {[%clk 0:01:24]} 19. Kc2 {[%clk 0:01:46]}  d5 {[%clk 0:01:03]} 20. f3 {[%clk 0:01:41]}  gxf3 {[%clk 0:00:53]} 21. gxf3 {[%clk 0:01:41]}  Qc6 {[%clk 0:00:44]} 22. Rhe1 {[%clk 0:01:38]}  d4 {[%clk 0:00:43]} 23. Qf2 {[%clk 0:01:23]}  axb3+ {[%clk 0:00:34]} 24. axb3 {[%clk 0:01:19]}  Nc5 {[%clk 0:00:31]} 25. Ra1 {[%clk 0:01:10]}  d3+ {[%clk 0:00:29]} 26. Kb1 {[%clk 0:01:11]}  Rxa1+ {[%clk 0:00:27]} 27. Kxa1 {[%clk 0:01:11]}  Kd7 {[%clk 0:00:24]} 28. Bxe5 {[%clk 0:01:08]}  Ra8+ {[%clk 0:00:24]} 29. Kb1 {[%clk 0:01:08]}  Qa6 {[%clk 0:00:22]} 30. Kc1 {[%clk 0:01:08]}  Qa1+ {[%clk 0:00:21]} 31. Nb1 {[%clk 0:01:08]}  Nxb3+ {[%clk 0:00:21]} 32. Kd1 {[%clk 0:01:09]}  Qxb1# {[%clk 0:00:22]} 0-1


[Site "https://www.chess.com"]